Cogmind - Beta 13 @@@ ROGUE MODE // 2024.05.02 @ 06:34:04 Player: Wyvric Result: Destroyed by G-47 Trooper with Particle Gun Performance ------------- Evolutions (1) 500 Regions Visited (5) 1000 Robots Destroyed (89) 445 Value Destroyed (2665) 2665 Prototype IDs (1) 20 Alien Tech Used (0) 0 Bonus (636) 636 TOTAL SCORE: 5266 Bonus ------- High Alert Combat Kills 403 Follower Combat Kills 241 Friendly Fire -8 Cogmind --------- Core Integrity 0/400 Matter 280/300 Energy 265/265 System Corruption 8% Temperature Cool (9) Movement Hovering (81) Location -9/Recycling Parts ------- > --- POWER (1) -------- Reinforced Ion Engine > --- PROPULSION (2) --- Hovering Aluminum Exoskeleton Combat Airjet > --- UTILITY (4) ------ Scrap Engine Core Shielding Core Shielding > --- WEAPON (2) ------- Heavy Assault Rifle Autogun > --- INVENTORY (5) ---- Wheel Armored Wheel High-capacity Storage Unit Structural Scanner Mini Grenade Launcher Peak State ------------ > --- POWER ------------ Reinforced Ion Engine > --- PROPULSION ------- Hovering Aluminum Exoskeleton Combat Airjet > --- UTILITY ---------- Scrap Engine Core Shielding Core Shielding > --- WEAPON ----------- Heavy Assault Rifle Autogun > --- INVENTORY -------- Wheel Armored Wheel High-capacity Storage Unit Structural Scanner Mini Grenade Launcher [Rating: 32] Favorites ----------- Power Ion Engine Engine Ion Engine Power Core Light Nuclear Core Propulsion Light Treads Treads Light Treads Leg Aluminum Leg Wheel Compact Wheel Hover Unit Combat Airjet Utility High-capacity Storage Unit Device Heat Sink Storage High-capacity Storage Unit Hackware Hacking Suite Protection Medium Armor Plating Weapon Heavy EM Pulse Gun Energy Gun Heavy EM Pulse Gun Ballistic Gun Autogun Launcher Mini Grenade Launcher Special Melee Weapon Datajack Build | -11 -10 -10 -9 -9 -9 ------- Run | Yrd Mat Min Mat Sto Rec Slots Evolved 2 | . . . 2 . . Power . | . . . . . . Propulsion . | . . . . . . Utility 2 | . . . 2 . . Weapon . | . . . . . . Parts Attached 110 | 6 6 6 35 49 8 Power 11 | 1 . 1 4 5 . Engine 9 | 1 . 1 4 3 . Core 2 | . . . . 2 . Reactor . | . . . . . . Propulsion 48 | 2 . 2 19 24 1 Treads 12 | 2 . . . 10 . Leg 11 | . . 2 9 . . Wheel 24 | . . . 10 14 . Hover 1 | . . . . . 1 Flight . | . . . . . . Utility 31 | 1 4 1 8 13 4 Device 12 | . . . 4 7 1 Storage 4 | 1 2 . 1 . . Processor . | . . . . . . Hackware 1 | . 1 . . . . Protection 14 | . 1 1 3 6 3 Artifact . | . . . . . . Weapon 20 | 2 2 2 4 7 3 Energy Gun 10 | . 2 2 3 3 . Energy Cannon . | . . . . . . Ballistic Gun 8 | 2 . . 1 3 2 Ballistic Cannon . | . . . . . . Launcher 1 | . . . . 1 . Special Weapon . | . . . . . . Impact Weapon . | . . . . . . Slashing Weapon . | . . . . . . Piercing Weapon . | . . . . . . Special Melee Weapon 1 | . . . . . 1 Unidentified Prototypes . | . . . . . . Parts Lost 28 | . . 3 9 16 . Power 6 | . . 1 3 2 . Propulsion 4 | . . . 1 3 . Utility 10 | . . . 2 8 . Weapon 8 | . . 2 3 3 . Highest Loss Streak 4 | . . 1 4 4 . To Critical Strikes . | . . . . . . Average Slot Usage (%) 95 | . 93 99 96 95 87 Engine 11 | . 14 13 10 7 11 Treads 12 | . 28 23 . 5 . Leg 4 | . . 4 13 . . Wheel 8 | . . . 8 15 21 Device 7 | . . . 11 20 11 Storage 13 | . 14 14 16 11 10 Protection 11 | . 7 14 13 8 10 Energy Gun 17 | . 15 28 20 14 . Ballistic Gun 6 | . 12 . 1 6 21 Naked Turns . | . . . . . . Heaviest Build 64 | 13 58 58 64 61 58 Greatest Support 40 | 40 40 40 32 40 26 Greatest Overweight (x) 4 | . 1 2 3 4 2 Average Overweight (x) 1 | . . 1 1 2 1 Largest Inventory Capacity 20 | 8 20 20 20 20 20 Average Capacity 18 | 7 15 20 20 20 19 Most Carried 20 | 6 15 20 20 20 20 Average Carried 17 | 4 11 16 19 19 18 Final Capacity 20 | 8 20 20 20 20 5 Final Carried 20 | 6 15 20 19 20 5 Scrap Engine Consumption 14 | . . . . . 14 Constructs Created 1 | . . . . . 1 Class Distribution -------------------- 71% | Mutant 28% | Scavenger-Mutant Dominant Class ---------------- Mutant | -10/Materials Mutant | -10/Mines Scavenger-Mutant | -9/Materials Scavenger-Mutant | -9/Storage Mutant | -9/Recycling Resources | -11 -10 -10 -9 -9 -9 ----------- Run | Yrd Mat Min Mat Sto Rec Matter Collected 1619 | 202 184 65 392 532 244 Remotely 20 | . . . . 20 . Salvage Created 2744 | . 331 263 1017 1014 119 Parts 182 | . 24 13 62 78 5 Haulers Intercepted . | . . . . . . Recyclers Shooed 2 | . . . . . 2 Parts Field Recycled . | . . . . . . Retrieved Matter . | . . . . . . Parts Self-Destructed . | . . . . . . Prevented . | . . . . . . Kills | -11 -10 -10 -9 -9 -9 ------- Run | Yrd Mat Min Mat Sto Rec Combat Hostiles Destroyed 81 | . 8 8 25 38 2 Melee 1 | . . 1 . . . Guns 67 | . 8 4 24 29 2 AOE 13 | . . 3 1 9 . Classes Destroyed 12 | . 2 1 4 4 1 Worker 3 | . . . 2 1 . Recycler 2 | . . . 1 1 . Mechanic 1 | . . . . 1 . Operator 1 | . 1 . . . . Watcher 1 | . . . 1 . . Swarmer 21 | . . 4 5 12 . Grunt 39 | . 8 4 16 11 . Brawler 3 | . . . . 3 . Duelist 2 | . . . . 2 . Protector 1 | . . . . 1 . Sentry 13 | . . . 4 9 . Demolisher 2 | . . . . . 2 Best Kill Streak 10 | . 3 3 4 10 1 Combat Bots Only 9 | . 3 3 3 9 1 Max Kills in Single Turn 3 | . 1 2 2 3 1 Gunslinging 1 | . . . . 1 . Exploded 3 | . . 2 1 3 . Melee 1 | . . 1 . . . Uniques/NPCs Destroyed . | . . . . . . Combat | -11 -10 -10 -9 -9 -9 -------- Run | Yrd Mat Min Mat Sto Rec Hostile Shots Fired 372 | . 28 57 112 171 4 Missed 91 | . 6 17 19 48 1 Damage Taken 3607 | . 235 532 1101 1699 40 Core 523 | . 24 92 106 278 23 Absorbed by Shields . | . . . . . . Redirected to Shielding 5 | . . . . . 5 Core Remaining (%) 76 | 100 . 53 . . . Volleys Fired 163 | . 26 21 51 53 12 Largest 2 | . 2 2 2 2 2 Hottest 140 | . 90 90 140 130 46 Shots Fired 319 | . 52 41 101 98 27 Gun 312 | . 52 41 101 91 27 Cannon . | . . . . . . Launcher 7 | . . . . 7 . Special . | . . . . . . Kinetic 93 | . 38 . 11 17 27 Thermal 134 | . . . 60 74 . Explosive 7 | . . . . 7 . Electromagnetic 85 | . 14 41 30 . . Robot Hit Streak 34 | . 13 8 24 34 11 Robot Miss Streak 7 | . 2 5 4 7 2 Penetration Max . | . . . . . . Secondary Targets 3 | . . . . 3 . Max Gunslinging Chain 1 | . . . . 1 . Shots Hit Robots 250 | . 38 23 83 88 18 Core Hits 232 | . 13 10 72 130 7 Critical Kills . | . . . . . . Critical Parts Destroyed 1 | . 1 . . . . Critical Strikes 5 | . 2 1 2 . . Burn 2 | . . . 2 . . Destroy 1 | . 1 . . . . Corrupt 2 | . 1 1 . . . Melee Attacks 2 | . . . . . 2 Impact . | . . . . . . Slashing . | . . . . . . Piercing . | . . . . . . Sneak Attacks 2 | . . . . . 2 Combat Hostiles 2 | . . . . . 2 Follow-up Attacks . | . . . . . . Damage Inflicted 4998 | . 453 595 1420 2246 284 Guns 3657 | . 453 390 1297 1233 284 Cannons . | . . . . . . Explosions 1319 | . . 194 120 1005 . Melee . | . . . . . . Ramming 22 | . . 11 3 8 . Kinetic 920 | . 309 . 81 246 284 Thermal 2193 | . . 194 1012 987 . Explosive 1005 | . . . . 1005 . Electromagnetic 858 | . 144 390 324 . . Impact . | . . . . . . Slashing . | . . . . . . Piercing . | . . . . . . Highest Corruption 8 | . . . . 8 8 Average Corruption 7 | . . . . 7 8 Corruption Purged . | . . . . . . Corruption Blocked . | . . . . . . Effects 41 | . . . . 12 29 Message Errors 9 | . . . . 4 5 Matter Fused 8 | . . . . 1 7 Heat Flow Errors 5 | . . . . 2 3 Energy Discharges 6 | . . . . 1 5 Parts Rejected 1 | . . . . . 1 Data Loss (minor) 5 | . . . . 3 2 Data Loss (major) 3 | . . . . . 3 Misfires 4 | . . . . 1 3 Overload Shots . | . . . . . . Overflow Damage 3 | . . . . 3 . Projectiles . | . . . . . . Explosions 3 | . . . . 3 . Melee . | . . . . . . Knockbacks . | . . . . . . Impact . | . . . . . . Kinetic . | . . . . . . Secondary . | . . . . . . Self-Inflicted Damage 220 | . . 71 28 121 . Shots 8 | . . 2 1 5 . Rammed 7 | . 1 5 . 1 . Targets Rammed 9 | . 1 6 1 1 . Kicked 1 | . . . 1 . . Crushed 1 | . . 1 . . . Highest Temperature 311 | . 187 269 242 311 241 Average Temperature 92 | . 60 104 93 102 54 Received Heat Transfer 1338 | . 120 201 504 492 21 Effects 1 | . . . 1 . . Energy Bleed 1 | . . . 1 . . Siege Activations . | . . . . . . Robots Corrupted . | . . . . . . Combat Hostiles . | . . . . . . Parts Fried 2 | . . 2 . . . Impact Corruptions . | . . . . . . Robots Melted . | . . . . . . Combat Hostiles . | . . . . . . Parts Melted 3 | . . . 3 . . Heat Transferred 2995 | . . 150 1620 1225 . Parts Sabotaged . | . . . . . . Parts Stolen . | . . . . . . Parts Stripped . | . . . . . . Power Chain Reactions 3 | . . 2 1 . . Alert | -11 -10 -10 -9 -9 -9 ------- Run | Yrd Mat Min Mat Sto Rec Peak Influence 1067 | . 175 144 433 1067 491 Initial 391 | . . 67 55 182 391 Average 239 | . 95 59 238 603 326 Maximum Alert Level 3 | . . . 2 3 2 Low Security (%) 58 | 100 100 100 46 2 19 Level 1 19 | . . . 46 26 32 Level 2 14 | . . . 6 31 48 Level 3 7 | . . . . 40 . Level 4 . | . . . . . . Level 5 . | . . . . . . High Security . | . . . . . . Max Security . | . . . . . . Squads Dispatched 19 | . 4 1 5 8 1 Investigation 8 | . 4 . 2 2 . Extermination . | . . . . . . Reinforcement 4 | . . . 3 1 . Assault 4 | . . 1 . 2 1 Garrison 3 | . . . . 3 . Intercept . | . . . . . . Searches Triggered . | . . . . . . Construction Impeded . | . . . . . . Haulers Reinforced . | . . . . . . Active Scanning Responses . | . . . . . . Cargo Convoy Interrupts . | . . . . . . Stealth | -11 -10 -10 -9 -9 -9 --------- Run | Yrd Mat Min Mat Sto Rec Distress Signals 7 | . 2 . 3 2 . Communications Jammed . | . . . . . . Distress Signals . | . . . . . . Times Spotted 131 | . 18 17 40 49 7 Peak Tracking Total 9 | . 6 4 5 9 2 Tactical Retreats 2 | . 1 . . 1 . Traps | -11 -10 -10 -9 -9 -9 ------- Run | Yrd Mat Min Mat Sto Rec Traps Triggered 6 | . 1 . 2 3 . Indirectly . | . . . . . . Trap Hack Attempts . | . . . . . . Triggered . | . . . . . . Disarmed . | . . . . . . Reprogrammed . | . . . . . . Reused . | . . . . . . Traps Extracted . | . . . . . . Installed . | . . . . . . Triggered 1 | . . 1 . . . Machines | -11 -10 -10 -9 -9 -9 ---------- Run | Yrd Mat Min Mat Sto Rec Machines Disabled 6 | . 1 1 3 1 . Max in Single Turn 1 | . 1 1 1 1 . Garrison Access 1 | . . . . 1 . Machines Repaired . | . . . . . . Machines Dismantled . | . . . . . . Machines Sabotaged . | . . . . . . Overloaded Fab Kills . | . . . . . . Hacking | -11 -10 -10 -9 -9 -9 --------- Run | Yrd Mat Min Mat Sto Rec Machines Accessed 22 | . 6 . 5 4 7 Terminals 15 | . 4 . 5 3 3 Fabricators . | . . . . . . Repair Stations . | . . . . . . Recycling Units 6 | . 2 . . . 4 Scanalyzers . | . . . . . . Garrison Access 1 | . . . . 1 . Total Hacks 39 | . 10 . 8 8 13 Successful 18 | . 4 . 2 2 10 Failed 21 | . 6 . 6 6 3 Catastrophic 5 | . 1 . 2 1 1 Database Lockouts . | . . . . . . Manual 26 | . 8 . 7 6 5 Terminals 30 | . 8 . 8 6 8 Fabricators . | . . . . . . Repair Stations . | . . . . . . Recycling Units 7 | . 2 . . . 5 Scanalyzers . | . . . . . . Garrison Access 2 | . . . . 2 . Terminal Hacks 9 | . 2 . 1 1 5 Part Schematic 3 | . 1 . . . 2 Open Door 1 | . . . . 1 . Branch Access Points 1 | . . . 1 . . Alert Level 1 | . . . . . 1 Unreport Threat 2 | . . . . . 2 Zone Layout 1 | . 1 . . . . Fabricator Hacks . | . . . . . . Repair Station Hacks . | . . . . . . Recycling Unit Hacks 1 | . . . . . 1 Retrieve Components 1 | . . . . . 1 Scanalyzer . | . . . . . . Garrison Access Hacks . | . . . . . . Unauthorized Hacks 8 | . 2 . 1 1 4 Terminals 1 | . . . 1 . . Botnet 1 | . . . 1 . . Fabricators . | . . . . . . Repair Stations . | . . . . . . Recycling Units 6 | . 2 . . . 4 Tunnel 6 | . 2 . . . 4 Scanalyzers . | . . . . . . Garrison Access 1 | . . . . 1 . Jam 1 | . . . . 1 . Data Cores Recovered 1 | . 1 . . . . Used . | . . . . . . Hacking Detections 15 | . 4 . 5 4 2 Full Trace Events 1 | . 1 . . . . Feedback Events . | . . . . . . Feedback Blocked . | . . . . . . Robot Schematics Acquired . | . . . . . . Robots Built . | . . . . . . Authchips . | . . . . . . Time . | . . . . . . Total Robot Build Rating . | . . . . . . Part Schematics Acquired 3 | . 1 . . . 2 Parts Built . | . . . . . . Authchips . | . . . . . . Time . | . . . . . . Total Part Build Rating . | . . . . . . Parts Repaired . | . . . . . . Time . | . . . . . . Parts Recycled . | . . . . . . Recycled Matter . | . . . . . . Retrieved Matter . | . . . . . . Retrieved Components 3 | . . . . . 3 Parts Scanalyzed . | . . . . . . Part Schematics Acquired . | . . . . . . Parts Damaged . | . . . . . . Bothacking | -11 -10 -10 -9 -9 -9 ------------ Run | Yrd Mat Min Mat Sto Rec Used RIF Installer . | . . . . . . Robots Hacked . | . . . . . . Non-combat . | . . . . . . Combat . | . . . . . . Robot Hacks Applied . | . . . . . . Relay Couplers Released . | . . . . . . Fabnet Peak Effective % . | . . . . . . Robots Rewired 2 | . . . . . 2 Allies Hacked . | . . . . . . Hacks Repelled . | . . . . . . Allies | -11 -10 -10 -9 -9 -9 -------- Run | Yrd Mat Min Mat Sto Rec Total Allies 8 | . . 4 . 2 2 Largest Group 4 | . . 4 1 2 1 Highest-Rated Group 71 | . . 71 16 62 8 Highest-Rated Ally 31 | . . 31 16 31 8 Total Orders . | . . . . . . Ally Attacks 57 | . . 33 10 8 6 Total Damage 602 | . . 349 57 124 72 Kills 11 | . . 8 1 . 2 Allies Corrupted 1 | . . . . 1 . Allies Melted 1 | . . . . 1 . Intel | -11 -10 -10 -9 -9 -9 ------- Run | Yrd Mat Min Mat Sto Rec Robot Analysis Total . | . . . . . . Derelict Logs Recovered 1 | . . 1 . . . Drone Launches . | . . . . . . Drone Recoveries . | . . . . . . Exploration | -11 -10 -10 -9 -9 -9 ------------- Run | Yrd Mat Min Mat Sto Rec Turns Passed 5364 | 117 780 1547 1145 967 808 Spaces Moved 2481 | 60 316 580 458 463 604 Core 3 | 3 . . . . . Treads 888 | 57 316 497 . 18 . Legs 236 | . . 83 153 . . Wheels 1327 | . . . 305 445 577 Hover 27 | . . . . . 27 Flight . | . . . . . . Fastest Speed 50 | 50 160 240 115 110 81 Average Speed 166 | 154 168 242 172 128 118 Slowest Speed 330 | 160 240 260 330 240 150 Overloaded Moves . | . . . . . . Propulsion Burnouts . | . . . . . . Robots Hopped . | . . . . . . Cave-ins Triggered . | . . . . . . Exploration Rate (%) 66 | 5 68 98 55 82 89 Regions Visited 5 Branch Regions 3 Pre-discovered Areas 7 | . 2 1 . . 4 Known Exits Taken 1 | . . . 1 . . Unknown Exits Taken 4 | 1 1 1 . 1 . Scrap Searched 1 | . . 1 . . . Spaces Dug . | . . . . . . Terrain Destroyed 41 | . . 27 2 12 . Melee . | . . . . . . Projectile . | . . . . . . AOE 41 | . . 27 2 12 . Terrain Rammed . | . . . . . . Walls Destroyed . | . . . . . . Machines Disabled . | . . . . . . Actions | -11 -10 -10 -9 -9 -9 --------- Run | Yrd Mat Min Mat Sto Rec Total 3395 | 81 519 673 706 730 686 Wait 472 | 10 146 44 131 115 26 Move 2476 | 59 315 579 457 462 604 Hop . | . . . . . . Pick Up 83 | 6 15 12 18 26 6 Fast Attach 28 | 6 4 1 4 8 5 Attach 31 | . 1 5 14 11 . Detach 2 | . . . . . 2 Swap 51 | . 1 . 17 30 3 Drop 70 | . 10 5 13 16 26 Fire 163 | . 26 21 51 53 12 Melee 2 | . . . . . 2 Ram 1 | . . . . 1 . Kick 1 | . . . 1 . . Crush 7 | . 1 6 . . . Escape Stasis 8 | . . . . 8 . Rewire . | . . . . . . Trap . | . . . . . . Miscellaneous . | . . . . . . Route ------- -11/Scrapyard -10/Materials (discovered 4 exits: *Mat x2 / [*Min x2]) -10/Mines (discovered 2 exits: *Mat x2) -9/Materials (discovered 2 exits: *Min / *Sto) -9/Storage (discovered 2 exits: [*Mat] / *Rec) -9/Recycling History --------- Turn | Location | Event 11 | -11/Scrapyard | Discovered new exit (range 15) 118 | -11/Scrapyard | Entered Materials 180 | -10/Materials | Discovered new exit (range 10) 304 | -10/Materials | Build established: Mutant 453 | -10/Materials | Discovered new exit (range 16) 726 | -10/Materials | Discovered new exit (range 16) 867 | -10/Materials | Discovered new exit (range 10) 898 | -10/Materials | Entered Mines 1023 | -10/Mines | Learned location of Storage (-9) 1771 | -10/Mines | Discovered new exit (range 8) 1831 | -10/Mines | Assisted by bots powering up and referring to "LRC-V3" 1988 | -10/Mines | Met a Derelict testing a Signal Generator 2001 | -10/Mines | Found Signal Generator 2275 | -10/Mines | Discovered new exit (range 5) 2445 | -10/Mines | Entered Materials 2445 | -9/Materials | Accompanied by 1 ally 2445 | -9/Materials | Evolved 2 slots: Utility x2 2461 | -9/Materials | Identified exit to Mines 2461 | -9/Materials | Identified exit to Storage 2781 | -9/Materials | Lost 4 parts (1p1u2w) 2998 | -9/Materials | Build established: Scavenger-Mutant 3590 | -9/Materials | Entered Storage 3897 | -9/Storage | Garrison activated, responded to threat 3976 | -9/Storage | Core integrity fell below 50% 4232 | -9/Storage | Lost 3 parts (1n1u1w) 4249 | -9/Storage | Core integrity fell below 20% 4273 | -9/Storage | Lost 4 parts (1p2u1w) 4305 | -9/Storage | Met a pair of Derelict thieves 4371 | -9/Storage | Destroyed 9 combat bots 4405 | -9/Storage | Discovered new exit (range 5) 4554 | -9/Storage | Used back door to open Recycling access 4554 | -9/Storage | Discovered new exit (range 3) 4557 | -9/Storage | Entered Recycling 4560 | -9/Recycling | Found Scrap Engine 4835 | -9/Recycling | Build established: Mutant 5365 | -9/Recycling | Destroyed by G-47 Trooper with Particle Gun Last Messages --------------- 05331_ Dropped Seismic Detector. 05332_ Acquired Hcp. Storage Unit. 05335_ R-06 Scavenger collects Seismic Detector. 05336_ R-06 Scavenger inserts Lgt. Treads into recycling unit. 05337_ Recycling unit begins recycling process. 05339_ Acquired Core Shielding. 05342_ Dropped Com. Wheel. 05343_ Scrap Engine constructs Hovering Aluminum Exoskeleton. 05345_ R-06 Scavenger collects Com. Wheel. 05365_ System corrupted: Substantial component data lost. 05365_ C-30 ARC: "LOCATED POTENTIAL SOURCE OF ANOMALOUS SIGNAL. NEUTRALIZING." 05365_ C-30 ARC bursts open, deploying its payload. 05365_ G-47 Trooper unfolds itself. 05365_ G-34 Mercenary unfolds itself. 05365_ M-13 Machinist unfolds itself. Map ----- +----------------------------------------------------+ | #+###"Y"# ##### # #?# """ #?# | | + ! # ?# #?# | | # # #?# #?# | | # # #?# """ #?########## | | + # #?# """ #????????### | | ##### # # #?# """ #??####### # | | #?#"" # # #?# """ #??# | | #?#"Y # !! # #?# """ #??# | | ####?#"" #% # #?# #??# | | #+######## ##+##+##+# #?# #??# | | # + #?# #### | | # ##"Y"###### # #?# + | | # ##"""#????# ### ##?# #### | | + ######????# #??##??# #??# | | # #??????####+#####??# #??### ##### | | # #??????# #??# ###+#########??? | | # #??????# #??# #?# #??? | | # #??????# ##?# #?# """ #??# | | ######## # #??????# #?# #?# """ "T" #??# | | ???????### #??????# ##?# #?# """ """ #??# | | ########## #??????# #??# #?# #??# | | # ######## #??# #?###########??# | | # + #??# #??????????????# | | # # #?## ##?????????????# | | # ######+##### #?#####???????# | | # r @ g%g ### #???????# | | + r ggm T #???????# | | # ### #???????? | | ###+#+############### #?## ##???????? | | #?# ###?#######+######+##???????? | | #?# ""## #???????? | | #?# Y"## #???????? | | #?# """ """ ""## #???????? | | ##########?# """ """ #### #???????? | | ???????????# """ """ #??# #???????? | | ???????????###########??############# ## #???????? | | ????????????????????????????????????###?##???????? | | ?????????????????????????????????????????????????? | | | | | | | | | | | | | | | | | | | | | | | | | +----------------------------------------------------+ Best States ------------- Heat Dissipation 48 Energy Generation 14 Energy Capacity 265 Matter Stores 400 Matter Capacity 400 Sight Range 16 Robot Scan Range 14 Terrain Scan Density 10 Armor Coverage 450 Core Shielding 20 Evasion (%) 48 Recoil Reduction 2 Offensive Hacking 10 Item Schematics ----------------- Huge Storage Unit | -10/Materials | Hacked Cargo Storage Unit | -9/Recycling | Hacked Imp. Medium Armor Plating | -9/Recycling | Hacked Robot Schematics ------------------ None Fabricated ------------ Nothing Alien Tech Used ----------------- None Achievements -------------- None Challenges ------------ None Game ------ Seed CentriumDiametricMonowheel Manual? 0 Play Time 00:44:37 Cumulative 275.3 hours Start 2024.05.02 @ 05:51:17 End 2024.05.02 @ 06:34:04 Sessions 1 Manual Loads 0 Difficulty Rogue Special Mode None Game No. 73 Rogue 73 Adventurer 0 Explorer 0 Win Type - Total 16 Types 8/3/3/1/1/0/0/0/0 Lore% 56 Gallery% 78 Achievement% 69 Wizard Run 0 Options --------- Layout 1 ASCII 0 Keyboard 0 Movement Numpad Keybinds 0 Fullscreen 1 Font 24/Smallcaps Map View 50x35 Zoom Use 15% Tactical HUD 1 Map Filters NONE Filters NONE Steam 1 RUN: 2f3d9170-6eea-49c6-91b3-ba9a1a762e8f